[Event "Titled Tuesday Blitz July 6 2021"]
[White "Nakamura, Hikaru"]
[Black "Grischuk, Alexander"]
[WhiteFideId "2016192"]
[BlackFideId "4126025"]
[WhiteElo "2900"]
[BlackElo "2765"]
[Result "0-1"]
[Round "06"]
[TimeControl "180+1"]
[Date "2021.07.06"]
[WhiteClock "0:00:30"]
[BlackClock "0:00:11"]

1. e4 {[%clk 0:03:00]}  c6 {[%clk 0:02:59]} 2. Nc3 {[%clk 0:02:59]}  d5 {[%clk 0:03:00]} 3. Nf3 {[%clk 0:02:59]}  dxe4 {[%clk 0:03:00]} 4. Nxe4 {[%clk 0:03:00]}  Nf6 {[%clk 0:03:01]} 5. Qe2 {[%clk 0:02:59]}  Nxe4 {[%clk 0:03:01]} 6. Qxe4 {[%clk 0:03:00]}  Nd7 {[%clk 0:03:01]} 7. Bc4 {[%clk 0:03:00]}  Nf6 {[%clk 0:03:01]} 8. Ne5 {[%clk 0:02:59]}  e6 {[%clk 0:03:02]} 9. Qe2 {[%clk 0:02:59]}  b5 {[%clk 0:02:51]} 10. Bd3 {[%clk 0:02:53]}  Bb7 {[%clk 0:02:45]} 11. b3 {[%clk 0:02:49]}  Bc5 {[%clk 0:02:05]} 12. Bb2 {[%clk 0:02:47]}  Bd4 {[%clk 0:02:05]} 13. Bxd4 {[%clk 0:02:42]}  Qxd4 {[%clk 0:02:06]} 14. c3 {[%clk 0:02:43]}  Qd6 {[%clk 0:01:58]} 15. Bc2 {[%clk 0:02:39]}  O-O {[%clk 0:01:56]} 16. O-O {[%clk 0:02:34]}  c5 {[%clk 0:01:56]} 17. Rfe1 {[%clk 0:02:31]}  Rab8 {[%clk 0:01:48]} 18. Rad1 {[%clk 0:02:30]}  a6 {[%clk 0:01:31]} 19. d4 {[%clk 0:02:24]}  Rfd8 {[%clk 0:01:28]} 20. Qe3 {[%clk 0:02:01]}  cxd4 {[%clk 0:01:27]} 21. Rxd4 {[%clk 0:02:02]}  Qc7 {[%clk 0:01:27]} 22. Rh4 {[%clk 0:01:56]}  Rbc8 {[%clk 0:01:06]} 23. c4 {[%clk 0:01:49]}  bxc4 {[%clk 0:00:57]} 24. Nxc4 {[%clk 0:01:20]}  Qc5 {[%clk 0:00:54]} 25. Bd3 {[%clk 0:01:07]}  Qxe3 {[%clk 0:00:50]} 26. Rxe3 {[%clk 0:01:08]}  g5 {[%clk 0:00:43]} 27. Rhh3 {[%clk 0:01:07]}  Kg7 {[%clk 0:00:40]} 28. Re1 {[%clk 0:01:03]}  Rd4 {[%clk 0:00:38]} 29. Bf1 {[%clk 0:01:02]}  h5 {[%clk 0:00:27]} 30. Rhe3 {[%clk 0:00:56]}  h4 {[%clk 0:00:23]} 31. Re5 {[%clk 0:00:55]}  g4 {[%clk 0:00:22]} 32. Rg5+ {[%clk 0:00:38]}  Kh6 {[%clk 0:00:22]} 33. Ra5 {[%clk 0:00:38]}  Kg7 {[%clk 0:00:21]} 34. Ne3 {[%clk 0:00:36]}  Rc3 {[%clk 0:00:15]} 35. Bxa6 {[%clk 0:00:34]}  Bxa6 {[%clk 0:00:14]} 36. Rxa6 {[%clk 0:00:35]}  g3 {[%clk 0:00:11]} 37. hxg3 {[%clk 0:00:35]}  hxg3 {[%clk 0:00:11]} 38. fxg3 {[%clk 0:00:36]}  Re4 {[%clk 0:00:11]} 39. Kf2 {[%clk 0:00:30]}  Rexe3 {[%clk 0:00:11]} 40. Rxe3 {[%clk 0:00:29]}  Ng4+ {[%clk 0:00:12]} 41. Ke2 {[%clk 0:00:28]}  Rxe3+ {[%clk 0:00:12]} 42. Kd2 {[%clk 0:00:28]}  Rxg3 {[%clk 0:00:13]} 43. b4 {[%clk 0:00:29]}  Rxg2+ {[%clk 0:00:11]} 44. Kc3 {[%clk 0:00:29]}  Ne3 {[%clk 0:00:11]} 45. a4 {[%clk 0:00:30]}  Nd5+ {[%clk 0:00:11]} 46. Kc4 {[%clk 0:00:30]}  Rg4+ {[%clk 0:00:11]} 47. Kc5 {[%clk 0:00:30]}  Rxb4 {[%clk 0:00:11]} 0-1


[Site "https://www.chess.com"]

[Event "Titled Tuesday Blitz July 6 2021"]
[White "Pakleza, Zbigniew"]
[Black "Gelman, Alexander"]
[WhiteFideId "1119290"]
[BlackFideId "4118316"]
[WhiteElo "2526"]
[BlackElo "2375"]
[Result "0-1"]
[Round "06"]
[TimeControl "180+1"]
[Date "2021.07.06"]
[WhiteClock "0:00:06"]
[BlackClock "0:01:04"]

1. d4 {[%clk 0:03:00]}  Nf6 {[%clk 0:02:58]} 2. Bf4 {[%clk 0:03:00]}  c5 {[%clk 0:02:57]} 3. c3 {[%clk 0:03:00]}  b6 {[%clk 0:02:57]} 4. e3 {[%clk 0:03:01]}  Bb7 {[%clk 0:02:58]} 5. Nf3 {[%clk 0:03:00]}  d6 {[%clk 0:02:58]} 6. Bc4 {[%clk 0:02:56]}  Nbd7 {[%clk 0:02:58]} 7. Nbd2 {[%clk 0:02:54]}  a6 {[%clk 0:02:58]} 8. a4 {[%clk 0:02:53]}  h6 {[%clk 0:02:58]} 9. h3 {[%clk 0:02:53]}  g5 {[%clk 0:02:58]} 10. Bh2 {[%clk 0:02:46]}  Rg8 {[%clk 0:02:57]} 11. Qb3 {[%clk 0:02:43]}  e6 {[%clk 0:02:56]} 12. O-O-O {[%clk 0:02:21]}  h5 {[%clk 0:02:43]} 13. Rhg1 {[%clk 0:02:08]}  g4 {[%clk 0:02:43]} 14. hxg4 {[%clk 0:01:57]}  hxg4 {[%clk 0:02:44]} 15. Nh4 {[%clk 0:01:43]}  d5 {[%clk 0:02:45]} 16. Be2 {[%clk 0:01:40]}  c4 {[%clk 0:02:45]} 17. Qc2 {[%clk 0:01:32]}  b5 {[%clk 0:02:45]} 18. Nb1 {[%clk 0:01:22]}  Qa5 {[%clk 0:02:40]} 19. axb5 {[%clk 0:01:06]}  axb5 {[%clk 0:02:40]} 20. f3 {[%clk 0:01:06]}  g3 {[%clk 0:02:38]} 21. Rh1 {[%clk 0:01:01]}  gxh2 {[%clk 0:02:37]} 22. Rxh2 {[%clk 0:01:02]}  b4 {[%clk 0:02:38]} 23. g4 {[%clk 0:00:59]}  Bc6 {[%clk 0:02:31]} 24. Rg1 {[%clk 0:00:54]}  Qa1 {[%clk 0:02:17]} 25. g5 {[%clk 0:00:47]}  Ba4 {[%clk 0:01:59]} 26. Qd2 {[%clk 0:00:47]}  Bb3 {[%clk 0:01:56]} 27. Bd1 {[%clk 0:00:46]}  bxc3 {[%clk 0:01:41]} 28. Qxc3 {[%clk 0:00:42]}  Bxd1 {[%clk 0:01:40]} 29. Rxd1 {[%clk 0:00:39]}  Rxg5 {[%clk 0:01:40]} 30. Ng2 {[%clk 0:00:33]}  Rb8 {[%clk 0:01:33]} 31. Nf4 {[%clk 0:00:28]}  Rg8 {[%clk 0:01:26]} 32. e4 {[%clk 0:00:25]}  Bb4 {[%clk 0:01:24]} 33. Qc2 {[%clk 0:00:20]}  c3 {[%clk 0:01:22]} 34. exd5 {[%clk 0:00:05]}  cxb2+ {[%clk 0:01:15]} 35. Qxb2 {[%clk 0:00:06]}  Ba3 {[%clk 0:01:04]} 0-1


[Site "https://www.chess.com"]

[Event "Titled Tuesday Blitz July 6 2021"]
[White "Petriashvili, Nikoloz"]
[Black "Jobava, Baadur"]
[WhiteFideId "13611216"]
[BlackFideId "13601520"]
[WhiteElo "2430"]
[BlackElo "2748"]
[Result "0-1"]
[Round "06"]
[TimeControl "180+1"]
[Date "2021.07.06"]
[WhiteClock "0:00:02"]
[BlackClock "0:00:03"]

1. e4 {[%clk 0:03:00]}  e5 {[%clk 0:02:59]} 2. Nf3 {[%clk 0:02:59]}  Nf6 {[%clk 0:02:59]} 3. Nxe5 {[%clk 0:02:59]}  d6 {[%clk 0:03:00]} 4. Nf3 {[%clk 0:02:59]}  Nxe4 {[%clk 0:03:00]} 5. Nc3 {[%clk 0:02:59]}  Nxc3 {[%clk 0:03:00]} 6. dxc3 {[%clk 0:03:00]}  Be7 {[%clk 0:03:01]} 7. Be3 {[%clk 0:02:59]}  Nc6 {[%clk 0:03:01]} 8. Qd2 {[%clk 0:02:56]}  Bf5 {[%clk 0:03:01]} 9. O-O-O {[%clk 0:02:42]}  O-O {[%clk 0:03:01]} 10. h3 {[%clk 0:02:35]}  Re8 {[%clk 0:02:59]} 11. Bc4 {[%clk 0:02:13]}  Qd7 {[%clk 0:02:59]} 12. Nd4 {[%clk 0:02:11]}  Nxd4 {[%clk 0:02:57]} 13. Qxd4 {[%clk 0:02:10]}  c6 {[%clk 0:02:53]} 14. g4 {[%clk 0:02:03]}  Bg6 {[%clk 0:02:53]} 15. Bd3 {[%clk 0:01:59]}  Bf6 {[%clk 0:02:50]} 16. Qf4 {[%clk 0:01:46]}  d5 {[%clk 0:02:50]} 17. c4 {[%clk 0:01:34]}  Be5 {[%clk 0:01:59]} 18. Qf3 {[%clk 0:01:30]}  d4 {[%clk 0:01:42]} 19. Bd2 {[%clk 0:01:21]}  Re6 {[%clk 0:01:40]} 20. Rde1 {[%clk 0:00:59]}  Rf6 {[%clk 0:01:37]} 21. Qe2 {[%clk 0:00:52]}  Bd6 {[%clk 0:01:32]} 22. Rhf1 {[%clk 0:00:38]}  Re6 {[%clk 0:01:23]} 23. Qf3 {[%clk 0:00:34]}  Rae8 {[%clk 0:01:23]} 24. Kd1 {[%clk 0:00:30]}  a6 {[%clk 0:01:12]} 25. Rxe6 {[%clk 0:00:27]}  Rxe6 {[%clk 0:01:13]} 26. Re1 {[%clk 0:00:25]}  Rf6 {[%clk 0:01:06]} 27. Qe2 {[%clk 0:00:20]}  Re6 {[%clk 0:01:05]} 28. Qf3 {[%clk 0:00:20]}  Be5 {[%clk 0:00:58]} 29. Bxg6 {[%clk 0:00:19]}  hxg6 {[%clk 0:00:57]} 30. Qd3 {[%clk 0:00:19]}  b5 {[%clk 0:00:54]} 31. b3 {[%clk 0:00:17]}  Qd6 {[%clk 0:00:49]} 32. Re4 {[%clk 0:00:15]}  Bf6 {[%clk 0:00:39]} 33. Rxe6 {[%clk 0:00:15]}  Qxe6 {[%clk 0:00:40]} 34. Qe2 {[%clk 0:00:08]}  Qd7 {[%clk 0:00:40]} 35. cxb5 {[%clk 0:00:07]}  axb5 {[%clk 0:00:39]} 36. a4 {[%clk 0:00:08]}  bxa4 {[%clk 0:00:30]} 37. bxa4 {[%clk 0:00:09]}  Qd5 {[%clk 0:00:25]} 38. a5 {[%clk 0:00:07]}  c5 {[%clk 0:00:20]} 39. a6 {[%clk 0:00:06]}  c4 {[%clk 0:00:20]} 40. a7 {[%clk 0:00:03]}  Qa8 {[%clk 0:00:19]} 41. Qxc4 {[%clk 0:00:01]}  Qxa7 {[%clk 0:00:20]} 42. Qd3 {[%clk 0:00:02]}  Qb7 {[%clk 0:00:18]} 43. Ke2 {[%clk 0:00:03]}  Qg2 {[%clk 0:00:17]} 44. Bf4 {[%clk 0:00:03]}  g5 {[%clk 0:00:16]} 45. Bg3 {[%clk 0:00:03]}  Qxh3 {[%clk 0:00:16]} 46. Qe4 {[%clk 0:00:03]}  g6 {[%clk 0:00:14]} 47. Qe8+ {[%clk 0:00:03]}  Kg7 {[%clk 0:00:15]} 48. Qe4 {[%clk 0:00:04]}  Qh8 {[%clk 0:00:15]} 49. Be5 {[%clk 0:00:04]}  Qd8 {[%clk 0:00:15]} 50. Kd3 {[%clk 0:00:02]}  Qc8 {[%clk 0:00:11]} 51. Bxf6+ {[%clk 0:00:02]}  Kxf6 {[%clk 0:00:12]} 52. Qxd4+ {[%clk 0:00:03]}  Ke7 {[%clk 0:00:12]} 53. f3 {[%clk 0:00:03]}  Qa6+ {[%clk 0:00:12]} 54. Qc4 {[%clk 0:00:04]}  Qa3+ {[%clk 0:00:12]} 55. Qc3 {[%clk 0:00:04]}  Qc1 {[%clk 0:00:10]} 56. Qe5+ {[%clk 0:00:04]}  Kf8 {[%clk 0:00:10]} 57. Qe4 {[%clk 0:00:03]}  Kg7 {[%clk 0:00:07]} 58. c4 {[%clk 0:00:03]}  f5 {[%clk 0:00:07]} 59. gxf5 {[%clk 0:00:03]}  gxf5 {[%clk 0:00:08]} 60. Qe5+ {[%clk 0:00:03]}  Kg6 {[%clk 0:00:08]} 61. Qe6+ {[%clk 0:00:04]}  Kh5 {[%clk 0:00:08]} 62. Qe3 {[%clk 0:00:04]}  Qb1+ {[%clk 0:00:08]} 63. Kd4 {[%clk 0:00:04]}  f4 {[%clk 0:00:08]} 64. Qe4 {[%clk 0:00:04]}  Qd1+ {[%clk 0:00:08]} 65. Ke5 {[%clk 0:00:04]}  Qa1+ {[%clk 0:00:06]} 66. Kd5 {[%clk 0:00:04]}  Qd1+ {[%clk 0:00:04]} 67. Ke6 {[%clk 0:00:04]}  g4 {[%clk 0:00:03]} 68. c5 {[%clk 0:00:05]}  Qxf3 {[%clk 0:00:03]} 69. Qh7+ {[%clk 0:00:03]}  Kg5 {[%clk 0:00:03]} 70. Qg7+ {[%clk 0:00:02]}  Kh4 {[%clk 0:00:03]} 71. Qf6+ {[%clk 0:00:02]}  Kg3 {[%clk 0:00:03]} 72. Kd7 {[%clk 0:00:02]}  Qb7+ {[%clk 0:00:03]} 73. Kd6 {[%clk 0:00:02]}  Qb8+ {[%clk 0:00:03]} 74. Kd7 {[%clk 0:00:02]}  Qa7+ {[%clk 0:00:03]} 75. Kd6 {[%clk 0:00:02]}  Qa3 {[%clk 0:00:04]} 76. Kc6 {[%clk 0:00:02]}  Qa6+ {[%clk 0:00:03]} 0-1


[Site "https://www.chess.com"]

[Event "Titled Tuesday Blitz July 6 2021"]
[White "Piesik, Piotr"]
[Black "Roman, Rodrigo"]
[WhiteFideId "1136194"]
[BlackFideId "3701220"]
[WhiteElo "2354"]
[BlackElo "2043"]
[Result "0-1"]
[Round "06"]
[TimeControl "180+1"]
[Date "2021.07.06"]
[WhiteClock "0:01:37"]
[BlackClock "0:01:33"]

1. Nf3 {[%clk 0:03:00]}  Nf6 {[%clk 0:02:59]} 2. g3 {[%clk 0:03:00]}  g6 {[%clk 0:02:58]} 3. Bg2 {[%clk 0:03:01]}  Bg7 {[%clk 0:02:58]} 4. O-O {[%clk 0:03:02]}  O-O {[%clk 0:02:59]} 5. d4 {[%clk 0:03:02]}  d5 {[%clk 0:02:57]} 6. c4 {[%clk 0:03:02]}  c6 {[%clk 0:02:51]} 7. Nc3 {[%clk 0:03:02]}  dxc4 {[%clk 0:02:48]} 8. a4 {[%clk 0:03:02]}  Nd5 {[%clk 0:02:44]} 9. e4 {[%clk 0:02:58]}  Nb4 {[%clk 0:02:42]} 10. Be3 {[%clk 0:02:57]}  Nd3 {[%clk 0:02:41]} 11. b3 {[%clk 0:02:50]}  c5 {[%clk 0:02:39]} 12. e5 {[%clk 0:02:41]}  cxd4 {[%clk 0:02:37]} 13. Bxd4 {[%clk 0:02:39]}  Be6 {[%clk 0:02:33]} 14. Be3 {[%clk 0:02:25]}  Nc6 {[%clk 0:02:21]} 15. Ng5 {[%clk 0:02:25]}  Bxe5 {[%clk 0:02:18]} 16. Nxe6 {[%clk 0:02:24]}  fxe6 {[%clk 0:02:19]} 17. Qd2 {[%clk 0:02:16]}  Qa5 {[%clk 0:02:09]} 18. bxc4 {[%clk 0:02:00]}  Nxf2 {[%clk 0:02:06]} 19. Bxf2 {[%clk 0:01:55]}  Bxc3 {[%clk 0:02:02]} 20. Qe2 {[%clk 0:01:55]}  Bxa1 {[%clk 0:01:49]} 21. Qxe6+ {[%clk 0:01:55]}  Kg7 {[%clk 0:01:46]} 22. Rxa1 {[%clk 0:01:53]}  Rxf2 {[%clk 0:01:36]} 23. Kxf2 {[%clk 0:01:52]}  Qd2+ {[%clk 0:01:35]} 24. Qe2 {[%clk 0:01:37]}  Qd4+ {[%clk 0:01:33]} 0-1


[Site "https://www.chess.com"]

[Event "Titled Tuesday Blitz July 6 2021"]
[White "Pruijssers, Roeland"]
[Black "Quparadze, Giga"]
[WhiteFideId "1013068"]
[BlackFideId "13602250"]
[WhiteElo "2545"]
[BlackElo "2658"]
[Result "0-1"]
[Round "06"]
[TimeControl "180+1"]
[Date "2021.07.06"]
[WhiteClock "0:00:02"]
[BlackClock "0:01:21"]

1. e4 {[%clk 0:03:00]}  c5 {[%clk 0:02:57]} 2. Nf3 {[%clk 0:03:00]}  e6 {[%clk 0:02:56]} 3. d4 {[%clk 0:03:00]}  cxd4 {[%clk 0:02:57]} 4. Nxd4 {[%clk 0:03:01]}  a6 {[%clk 0:02:57]} 5. Bd3 {[%clk 0:02:59]}  g6 {[%clk 0:02:56]} 6. O-O {[%clk 0:02:52]}  Bg7 {[%clk 0:02:56]} 7. c3 {[%clk 0:02:47]}  Ne7 {[%clk 0:02:56]} 8. a4 {[%clk 0:02:42]}  Nbc6 {[%clk 0:02:55]} 9. Nb3 {[%clk 0:02:41]}  b6 {[%clk 0:02:54]} 10. Na3 {[%clk 0:02:39]}  O-O {[%clk 0:02:51]} 11. Be3 {[%clk 0:02:26]}  d5 {[%clk 0:02:51]} 12. Qe2 {[%clk 0:02:24]}  Ne5 {[%clk 0:02:48]} 13. Bc2 {[%clk 0:02:19]}  Bd7 {[%clk 0:02:46]} 14. f4 {[%clk 0:02:13]}  Nc4 {[%clk 0:02:37]} 15. Nxc4 {[%clk 0:02:00]}  dxc4 {[%clk 0:02:37]} 16. Qxc4 {[%clk 0:01:52]}  b5 {[%clk 0:02:37]} 17. Qe2 {[%clk 0:01:47]}  bxa4 {[%clk 0:02:33]} 18. Nc5 {[%clk 0:01:46]}  Bb5 {[%clk 0:02:34]} 19. c4 {[%clk 0:01:43]}  Bc6 {[%clk 0:02:29]} 20. Rfd1 {[%clk 0:01:29]}  Qc8 {[%clk 0:02:27]} 21. Bxa4 {[%clk 0:01:27]}  Bxa4 {[%clk 0:02:20]} 22. Nxa4 {[%clk 0:01:22]}  Qc6 {[%clk 0:02:19]} 23. e5 {[%clk 0:01:12]}  Nf5 {[%clk 0:02:19]} 24. Bf2 {[%clk 0:01:12]}  h5 {[%clk 0:02:09]} 25. Nb6 {[%clk 0:01:08]}  Rab8 {[%clk 0:02:06]} 26. Nd7 {[%clk 0:01:05]}  Rb4 {[%clk 0:01:56]} 27. Nxf8 {[%clk 0:01:04]}  Bxf8 {[%clk 0:01:57]} 28. Rac1 {[%clk 0:00:58]}  Bc5 {[%clk 0:01:57]} 29. Bxc5 {[%clk 0:00:53]}  Qxc5+ {[%clk 0:01:58]} 30. Qf2 {[%clk 0:00:53]}  Qc6 {[%clk 0:01:58]} 31. Qf3 {[%clk 0:00:28]}  Qc5+ {[%clk 0:01:48]} 32. Qf2 {[%clk 0:00:28]}  Qc6 {[%clk 0:01:34]} 33. c5 {[%clk 0:00:28]}  Rb3 {[%clk 0:01:32]} 34. Rc3 {[%clk 0:00:27]}  Rxc3 {[%clk 0:01:31]} 35. bxc3 {[%clk 0:00:27]}  a5 {[%clk 0:01:31]} 36. Ra1 {[%clk 0:00:11]}  a4 {[%clk 0:01:31]} 37. g3 {[%clk 0:00:08]}  Kg7 {[%clk 0:01:31]} 38. h3 {[%clk 0:00:05]}  Qe4 {[%clk 0:01:27]} 39. Kh2 {[%clk 0:00:04]}  Qc4 {[%clk 0:01:24]} 40. Qg2 {[%clk 0:00:03]}  Ne3 {[%clk 0:01:22]} 41. Qf3 {[%clk 0:00:02]}  Nd5 {[%clk 0:01:21]} 0-1


[Site "https://www.chess.com"]

[Event "Titled Tuesday Blitz July 6 2021"]
[White "Przybylski, Wojciech"]
[Black "Erdogdu, Mert"]
[WhiteFideId "1117599"]
[BlackFideId "6301495"]
[WhiteElo "2317"]
[BlackElo "2485"]
[Result "0-1"]
[Round "06"]
[TimeControl "180+1"]
[Date "2021.07.06"]
[WhiteClock "0:00:05"]
[BlackClock "0:00:07"]

1. e4 {[%clk 0:03:00]}  c5 {[%clk 0:02:59]} 2. Nf3 {[%clk 0:02:59]}  d6 {[%clk 0:03:00]} 3. d4 {[%clk 0:02:59]}  cxd4 {[%clk 0:03:01]} 4. Nxd4 {[%clk 0:02:59]}  Nf6 {[%clk 0:03:01]} 5. Nc3 {[%clk 0:03:00]}  a6 {[%clk 0:03:02]} 6. h3 {[%clk 0:02:59]}  e6 {[%clk 0:03:02]} 7. Be3 {[%clk 0:02:57]}  b5 {[%clk 0:02:59]} 8. a3 {[%clk 0:02:56]}  Bb7 {[%clk 0:02:59]} 9. Bd3 {[%clk 0:02:55]}  Nbd7 {[%clk 0:02:59]} 10. Nb3 {[%clk 0:02:52]}  Rc8 {[%clk 0:02:59]} 11. O-O {[%clk 0:02:51]}  Be7 {[%clk 0:02:43]} 12. Re1 {[%clk 0:02:50]}  O-O {[%clk 0:02:43]} 13. Nd2 {[%clk 0:02:47]}  Ne5 {[%clk 0:02:10]} 14. f4 {[%clk 0:02:46]}  Nxd3 {[%clk 0:02:07]} 15. cxd3 {[%clk 0:02:47]}  d5 {[%clk 0:02:06]} 16. Bf2 {[%clk 0:02:28]}  dxe4 {[%clk 0:02:01]} 17. dxe4 {[%clk 0:02:29]}  Qc7 {[%clk 0:01:50]} 18. Qf3 {[%clk 0:02:21]}  Rfd8 {[%clk 0:01:44]} 19. Nb3 {[%clk 0:02:21]}  Qb8 {[%clk 0:01:25]} 20. Rad1 {[%clk 0:01:48]}  b4 {[%clk 0:01:22]} 21. axb4 {[%clk 0:01:43]}  Bxb4 {[%clk 0:01:23]} 22. Rxd8+ {[%clk 0:01:38]}  Rxd8 {[%clk 0:01:23]} 23. Nc5 {[%clk 0:01:36]}  Bc8 {[%clk 0:00:54]} 24. Rd1 {[%clk 0:01:28]}  Rxd1+ {[%clk 0:00:53]} 25. Qxd1 {[%clk 0:01:28]}  Bxc5 {[%clk 0:00:39]} 26. Bxc5 {[%clk 0:01:23]}  Bb7 {[%clk 0:00:39]} 27. e5 {[%clk 0:00:54]}  Nd5 {[%clk 0:00:39]} 28. Nxd5 {[%clk 0:00:52]}  Bxd5 {[%clk 0:00:40]} 29. b4 {[%clk 0:00:52]}  h6 {[%clk 0:00:39]} 30. Qd3 {[%clk 0:00:46]}  Qb7 {[%clk 0:00:38]} 31. Qe2 {[%clk 0:00:37]}  Qc6 {[%clk 0:00:38]} 32. Qf2 {[%clk 0:00:36]}  Be4 {[%clk 0:00:35]} 33. Kh2 {[%clk 0:00:35]}  Qd5 {[%clk 0:00:33]} 34. Qd4 {[%clk 0:00:33]}  Qb7 {[%clk 0:00:29]} 35. Qd2 {[%clk 0:00:32]}  Bd5 {[%clk 0:00:27]} 36. Kg3 {[%clk 0:00:32]}  Qb5 {[%clk 0:00:27]} 37. Qe3 {[%clk 0:00:31]}  Qf1 {[%clk 0:00:25]} 38. Qf2 {[%clk 0:00:31]}  Qc1 {[%clk 0:00:22]} 39. Qe3 {[%clk 0:00:30]}  Qc2 {[%clk 0:00:20]} 40. Qf2 {[%clk 0:00:30]}  Qg6+ {[%clk 0:00:19]} 41. Kh2 {[%clk 0:00:30]}  Qe4 {[%clk 0:00:20]} 42. Qd2 {[%clk 0:00:27]}  Kh7 {[%clk 0:00:19]} 43. Bd4 {[%clk 0:00:23]}  h5 {[%clk 0:00:16]} 44. Be3 {[%clk 0:00:20]}  Kg6 {[%clk 0:00:15]} 45. Qf2 {[%clk 0:00:19]}  f6 {[%clk 0:00:15]} 46. exf6 {[%clk 0:00:19]}  gxf6 {[%clk 0:00:16]} 47. Bd4 {[%clk 0:00:18]}  Kf7 {[%clk 0:00:16]} 48. Bc3 {[%clk 0:00:16]}  h4 {[%clk 0:00:14]} 49. Qa7+ {[%clk 0:00:15]}  Kg6 {[%clk 0:00:13]} 50. Qf2 {[%clk 0:00:15]}  Kf5 {[%clk 0:00:13]} 51. Bd2 {[%clk 0:00:15]}  Bc6 {[%clk 0:00:11]} 52. Kg1 {[%clk 0:00:14]}  Qb1+ {[%clk 0:00:10]} 53. Kh2 {[%clk 0:00:14]}  Qe4 {[%clk 0:00:11]} 54. Kg1 {[%clk 0:00:14]}  Kg6 {[%clk 0:00:11]} 55. Kh2 {[%clk 0:00:14]}  Bb7 {[%clk 0:00:11]} 56. Bc3 {[%clk 0:00:13]}  Kf7 {[%clk 0:00:11]} 57. Bd2 {[%clk 0:00:13]}  Qd5 {[%clk 0:00:11]} 58. Bc3 {[%clk 0:00:13]}  Qe4 {[%clk 0:00:11]} 59. Bd2 {[%clk 0:00:13]}  e5 {[%clk 0:00:08]} 60. fxe5 {[%clk 0:00:12]}  Qxe5+ {[%clk 0:00:09]} 61. Bf4 {[%clk 0:00:12]}  Qe4 {[%clk 0:00:09]} 62. Qd2 {[%clk 0:00:12]}  Ke6 {[%clk 0:00:09]} 63. Be3 {[%clk 0:00:10]}  f5 {[%clk 0:00:08]} 64. Bc5 {[%clk 0:00:10]}  f4 {[%clk 0:00:08]} 65. Qd6+ {[%clk 0:00:09]}  Kf5 {[%clk 0:00:08]} 66. Qf8+ {[%clk 0:00:09]}  Ke5 {[%clk 0:00:08]} 67. Qd6+ {[%clk 0:00:09]}  Kf5 {[%clk 0:00:08]} 68. Qd7+ {[%clk 0:00:09]}  Kg6 {[%clk 0:00:08]} 69. Qd6+ {[%clk 0:00:08]}  Kh5 {[%clk 0:00:08]} 70. Qd2 {[%clk 0:00:07]}  f3 {[%clk 0:00:08]} 71. Be7 {[%clk 0:00:02]}  Qxe7 {[%clk 0:00:07]} 72. gxf3 {[%clk 0:00:02]}  Qe5+ {[%clk 0:00:07]} 73. Kg2 {[%clk 0:00:03]}  Qg3+ {[%clk 0:00:07]} 74. Kf1 {[%clk 0:00:03]}  Qxf3+ {[%clk 0:00:08]} 75. Ke1 {[%clk 0:00:04]}  Qxh3 {[%clk 0:00:08]} 76. Qd5+ {[%clk 0:00:03]}  Bxd5 {[%clk 0:00:07]} 77. Kd2 {[%clk 0:00:04]}  Qb3 {[%clk 0:00:07]} 78. b5 {[%clk 0:00:04]}  Qxb5 {[%clk 0:00:07]} 79. Kc2 {[%clk 0:00:04]}  Qc4+ {[%clk 0:00:07]} 80. Kb2 {[%clk 0:00:05]}  Qb3+ {[%clk 0:00:07]} 81. Ka1 {[%clk 0:00:05]}  Qa2# {[%clk 0:00:07]} 0-1


[Site "https://www.chess.com"]

[Event "Titled Tuesday Blitz July 6 2021"]
[White "Rorrer, Grayson"]
[Black "Altman, Joshua"]
[WhiteFideId "30944996"]
[BlackFideId "426210"]
[WhiteElo "2122"]
[BlackElo "1945"]
[Result "1-0"]
[Round "06"]
[TimeControl "180+1"]
[Date "2021.07.06"]
[WhiteClock "0:01:11"]
[BlackClock "0:00:46"]

1. e4 {[%clk 0:03:00]}  e6 {[%clk 0:03:00]} 2. d4 {[%clk 0:02:59]}  d5 {[%clk 0:03:00]} 3. Nd2 {[%clk 0:02:59]}  Nf6 {[%clk 0:03:01]} 4. e5 {[%clk 0:02:59]}  Nfd7 {[%clk 0:03:01]} 5. Bd3 {[%clk 0:03:00]}  c5 {[%clk 0:03:01]} 6. c3 {[%clk 0:03:01]}  Nc6 {[%clk 0:03:02]} 7. Ne2 {[%clk 0:03:02]}  Qb6 {[%clk 0:03:02]} 8. Nf3 {[%clk 0:03:02]}  cxd4 {[%clk 0:03:03]} 9. cxd4 {[%clk 0:03:03]}  f6 {[%clk 0:03:03]} 10. exf6 {[%clk 0:03:03]}  Nxf6 {[%clk 0:03:04]} 11. O-O {[%clk 0:03:04]}  Bd6 {[%clk 0:03:05]} 12. Bg5 {[%clk 0:03:01]}  O-O {[%clk 0:03:04]} 13. Bh4 {[%clk 0:03:02]}  Bd7 {[%clk 0:03:02]} 14. Bg3 {[%clk 0:03:02]}  Bxg3 {[%clk 0:03:01]} 15. Nxg3 {[%clk 0:03:02]}  Rae8 {[%clk 0:03:01]} 16. a3 {[%clk 0:03:02]}  e5 {[%clk 0:02:58]} 17. dxe5 {[%clk 0:03:00]}  Nxe5 {[%clk 0:02:59]} 18. Nxe5 {[%clk 0:03:00]}  Rxe5 {[%clk 0:02:59]} 19. Qd2 {[%clk 0:03:00]}  Bc6 {[%clk 0:02:43]} 20. b4 {[%clk 0:02:53]}  Ne4 {[%clk 0:02:38]} 21. Nxe4 {[%clk 0:02:46]}  dxe4 {[%clk 0:02:39]} 22. Bc4+ {[%clk 0:02:46]}  Kh8 {[%clk 0:02:38]} 23. Rae1 {[%clk 0:02:34]}  Ref5 {[%clk 0:02:14]} 24. Re3 {[%clk 0:02:33]}  h6 {[%clk 0:02:10]} 25. Rh3 {[%clk 0:02:20]}  Bb5 {[%clk 0:01:54]} 26. Bxb5 {[%clk 0:02:02]}  Qxb5 {[%clk 0:01:54]} 27. Qe3 {[%clk 0:02:01]}  Qe5 {[%clk 0:01:40]} 28. Rh4 {[%clk 0:01:53]}  Rf4 {[%clk 0:01:30]} 29. Rxf4 {[%clk 0:01:51]}  Qxf4 {[%clk 0:01:27]} 30. Qxa7 {[%clk 0:01:45]}  Qd2 {[%clk 0:01:24]} 31. Qe3 {[%clk 0:01:41]}  Qd5 {[%clk 0:01:15]} 32. Re1 {[%clk 0:01:35]}  Ra8 {[%clk 0:01:13]} 33. h3 {[%clk 0:01:31]}  Qd3 {[%clk 0:01:09]} 34. Qxe4 {[%clk 0:01:27]}  Qxe4 {[%clk 0:01:08]} 35. Rxe4 {[%clk 0:01:28]}  Rxa3 {[%clk 0:01:08]} 36. Re7 {[%clk 0:01:27]}  Ra7 {[%clk 0:00:55]} 37. b5 {[%clk 0:01:25]}  Ra1+ {[%clk 0:00:50]} 38. Kh2 {[%clk 0:01:25]}  Ra2 {[%clk 0:00:50]} 39. f3 {[%clk 0:01:23]}  Kh7 {[%clk 0:00:50]} 40. Rxb7 {[%clk 0:01:22]}  Rb2 {[%clk 0:00:50]} 41. b6 {[%clk 0:01:20]}  Kg6 {[%clk 0:00:50]} 42. Rb8 {[%clk 0:01:20]}  Kf7 {[%clk 0:00:50]} 43. h4 {[%clk 0:01:20]}  Rb4 {[%clk 0:00:49]} 44. Kh3 {[%clk 0:01:14]}  Kg6 {[%clk 0:00:49]} 45. b7 {[%clk 0:01:09]}  Kh7 {[%clk 0:00:49]} 46. h5 {[%clk 0:01:09]}  Rb3 {[%clk 0:00:45]} 47. g3 {[%clk 0:01:09]}  Rb4 {[%clk 0:00:44]} 48. g4 {[%clk 0:01:09]}  Rb3 {[%clk 0:00:44]} 49. Kg3 {[%clk 0:01:10]}  Rb4 {[%clk 0:00:44]} 50. f4 {[%clk 0:01:11]}  Rb3+ {[%clk 0:00:44]} 51. Kf2 {[%clk 0:01:11]}  Rb4 {[%clk 0:00:45]} 52. Ke3 {[%clk 0:01:10]}  Rb3+ {[%clk 0:00:45]} 53. Kd4 {[%clk 0:01:11]}  Rb4+ {[%clk 0:00:46]} 54. Ke5 {[%clk 0:01:11]}  Rb5+ {[%clk 0:00:46]} 55. Ke6 {[%clk 0:01:11]}  Rb6+ {[%clk 0:00:46]} 56. Ke7 {[%clk 0:01:11]}  Rb1 {[%clk 0:00:46]} 57. g5 {[%clk 0:01:10]}  hxg5 {[%clk 0:00:46]} 58. fxg5 {[%clk 0:01:11]}  Re1+ {[%clk 0:00:45]} 59. Kd6 {[%clk 0:01:10]}  Rd1+ {[%clk 0:00:46]} 60. Ke5 {[%clk 0:01:10]}  Re1+ {[%clk 0:00:46]} 61. Kf4 {[%clk 0:01:11]}  Rf1+ {[%clk 0:00:46]} 62. Ke3 {[%clk 0:01:11]}  Rb1 {[%clk 0:00:46]} 63. g6+ {[%clk 0:01:08]}  Kh6 {[%clk 0:00:46]} 64. Rh8+ {[%clk 0:01:09]}  Kg5 {[%clk 0:00:47]} 65. b8=Q {[%clk 0:01:10]}  Rxb8 {[%clk 0:00:46]} 66. Rxb8 {[%clk 0:01:11]} 1-0


[Site "https://www.chess.com"]